fUSD/lending_fUSD_20240418
["ID","MTS","AMOUNT","RATE_DAILY","PERIOD"]
[322874025,1713451841729,-7645.3841021,0.00017497,2]
[322874026,1713451841739,-443.7704705,0.00017497,2]
[322874027,1713451841750,-525.71353376,0.00017497,2]
[322874028,1713451841760,-190.58520904,0.00017497,2]
[322874029,1713451841770,-245.00839905,0.00017497,2]
[322874030,1713451841779,-161.97180424,0.00017498,2]
[322874031,1713451841789,-167.20253002,0.00017498,2]
[322874032,1713451841798,-3617.9289588,0.00017498,2]
[322874033,1713451841808,-5412.79187194,0.00017498,2]
[322874034,1713451841818,-500.0,0.00017498,2]
[322874035,1713451841827,-500.0,0.00017498,2]
[322874036,1713451841838,-500.0,0.00017498,2]
[322874037,1713451841848,-376.48214074,0.00017499,2]
[322874038,1713451841866,-707763.3021389,0.00017499,2]
[322874039,1713451841875,-150.01,0.00017499,2]
[322874040,1713451841885,-5299.46582282,0.00017499,2]
[322874041,1713451841894,-500.0,0.00017499,2]
[322874042,1713451841904,-500.0,0.00017499,2]
[322874043,1713451841913,-500.0,0.00017499,2]
[322874044,1713451841922,-500.0,0.00017499,2]
[322874045,1713451841932,-203.11529181,0.00017499,2]
[322874046,1713451841941,-2148704.23883177,0.000175,2]
[322874047,1713451841951,-619.1404762,0.00017521,2]
[322874048,1713451841960,-3996.0562085,0.00017566,2]
[322874049,1713451841970,-210.0,0.00017578,2]
[322874050,1713451841979,-619.1404762,0.00017644,2]
[322874051,1713451841988,-467.0,0.000177,2]
[322874052,1713451841998,-7217.16831532,0.00017718,2]
[322874053,1713451842007,-619.1404762,0.00017766,2]
[322874054,1713451842016,-1162.54805339,0.00017789,2]
[322874055,1713451842026,-1799.0,0.000178,2]
[322874056,1713451842035,-447.11648,0.0001781,2]
[322874057,1713451842045,-800.0,0.00017828,2]
[322874058,1713451842054,-1900.0,0.00017828,2]
[322874059,1713451842064,-200.0,0.00017843,2]
[322874060,1713451842074,-619.1404762,0.00017888,2]
[322874061,1713451842083,-1000.0,0.000179,2]
[322874062,1713451842093,-1000.0,0.000179,2]
[322874063,1713451842105,-638.078,0.000179,2]
[322874064,1713451842115,-630.84,0.000179,2]
[322874065,1713451842125,-543.285,0.000179,2]
[322874066,1713451842134,-281.455,0.000179,2]
[322874067,1713451842144,-810.164,0.000179,2]
[322874068,1713451842154,-611.159,0.000179,2]
[322874069,1713451842163,-1950.0,0.000179,2]
[322874070,1713451842173,-150.522,0.000179,2]
[322874071,1713451842182,-3079.0,0.000179,2]
[322874072,1713451842191,-1479.334,0.000179,2]
[322874073,1713451842200,-400.794,0.000179,2]
[322874074,1713451842209,-214.0,0.000179,2]
[322874075,1713451842219,-150.429,0.000179,2]
[322874076,1713451842228,-1646.581,0.000179,2]
[322874077,1713451842239,-444.492,0.000179,2]
[322874078,1713451842248,-356.546,0.000179,2]
[322874079,1713451842257,-1140.0,0.000179,2]
[322874081,1713451842267,-1737.0,0.000179,2]
[322874083,1713451842277,-5883.0,0.000179,2]
[322874084,1713451842286,-26840.562,0.000179,2]
[322874086,1713451842296,-5725.0,0.000179,2]
[322874087,1713451842306,-150.0,0.000179,2]
[322874088,1713451842316,-1030.38846551,0.00017957,2]
[322874090,1713451842326,-1474.16348733,0.00018,2]
[322874092,1713451842335,-155.0,0.00018,2]
[322874093,1713451842345,-619.1404762,0.0001801,2]
[322874094,1713451842355,-7217.16831532,0.00018036,2]
[322874095,1713451842364,-200.0,0.00018084,2]
[322874096,1713451842373,-200.0,0.00018084,2]
[322874116,1713451842748,-500.0,0.00018084,2]
[322874117,1713451842762,-200.0,0.00018085,2]
[322874118,1713451842772,-500.0,0.00018085,2]
[322874119,1713451842782,-200.0,0.00018085,2]
[322874120,1713451842791,-758.57467411,0.000181,2]
[322874121,1713451842800,-1000.0,0.00018132,2]
[322874122,1713451842810,-10000.0,0.00018132,2]
[322874123,1713451842818,-619.1404762,0.00018133,2]
[322874124,1713451842828,-500.0,0.00018191,2]
[322874125,1713451842837,-482.0,0.000182,2]
[322874126,1713451842846,-207156.60217026,0.000182,3]
[322874127,1713451842859,-500.0,0.000182,2]
[322874128,1713451842868,-408.68729547,0.00018224,2]
[322874129,1713451842877,-362.90116211,0.00018224,2]
[322874130,1713451842886,-32520.45947027,0.0001823,2]
[322874131,1713451842896,-1121.66056614,0.00018231,5]
[322874132,1713451842905,-989.26629441,0.00018231,2]
[322874133,1713451842916,-687.56234955,0.00018231,5]
[322874134,1713451842925,-234.87333776,0.00018231,2]
[322874135,1713451842935,-234.87333776,0.00018231,2]
[322874136,1713451842946,-234.87333776,0.00018231,2]
[322874137,1713451842955,-234.87333776,0.00018231,2]
[322874138,1713451842964,-234.87333776,0.00018231,2]
[322874139,1713451842973,-155.76972347,0.00018232,2]
[322874140,1713451842982,-1487591.57662805,0.00018232,2]
[322874141,1713451842995,-341.93,0.00018232,2]
[322874142,1713451843125,-727.57061939,0.00018232,2]
[322874143,1713451843136,-609.1783248,0.00018232,2]
[322874144,1713451844610,-478.6711612,0.00016993,2]
[322874145,1713451844643,-555.36999983,0.00016993,2]
[322874146,1713451844672,-310.40455847,0.00016993,2]
[322874147,1713451844681,-627.34086753,0.00018199,5]
[322874148,1713451844691,-1020.26809807,0.00018232,2]
[322874149,1713451844703,-9724.59462426,0.00018232,2]
[322874150,1713451844714,-5403.68190335,0.00018232,2]
[322874151,1713451844726,-16293.155956,0.00018232,2]
[322874152,1713451844864,-1278.10730972,0.00018232,2]
[322874153,1713451844906,-3709.58456257,0.00018232,2]
[322874154,1713451844917,-4293.66207427,0.00018232,2]
[322874155,1713451844929,-611522.89528493,0.00018232,2]
[322874156,1713451844941,-2062.48042031,0.00018232,2]
[322874157,1713451844961,-1863193.81157097,0.00018232,2]
[322874164,1713451846881,-571.12298571,0.00017632,2]
[322874165,1713451846912,-2602.79276862,0.00017632,2]
[322874166,1713451846921,-2450.86685848,0.00018083,2]
[322874167,1713451846931,-1162.5480534,0.00018122,2]
[322874168,1713451846942,-12403.17593406,0.00018232,2]
[322874169,1713451847025,-638.751926,0.00018232,2]
[322874170,1713451847222,-265.15710906,0.00018232,2]
[322874171,1713451853350,800.0,0.000166,6]
[322874172,1713451855223,1600.0,0.000167,6]
[322874173,1713451856867,2400.0,0.000168,6]
[322874174,1713451858321,3200.0,0.000169,6]
[322874176,1713451871071,154.23938362,0.00014586,2]
[322874177,1713451871092,391.2435741,0.00014586,2]
[322874178,1713451887763,195.22695312,0.00014586,2]
[322874180,1713451993091,362.11,0.00025447,120]
[322874183,1713452121012,151.0,0.00023663,30]
[322874184,1713452121086,151.0,0.0002319,120]
[322874185,1713452184304,3013.31621758,0.00019,10]
[322874186,1713452199919,1413.52947278,0.00015796,2]
[322874187,1713452199939,2000.0,0.00015796,2]
[322874188,1713452199963,2000.0,0.00015796,2]
[322874189,1713452199983,2000.0,0.00015796,2]
[322874190,1713452200003,839.94942505,0.00015796,2]
[322874191,1713452275453,1104.77,0.00016204,15]
[322874192,1713452275778,1104.77,0.00018944,15]
[322874193,1713452277002,588.97,0.00014286,2]
[322874195,1713452608253,155.0,0.00015872,2]
[322874196,1713452619457,155.0,0.00015872,2]
[322874197,1713452631875,157.14910837,0.00015872,2]
[322874198,1713452674029,151.0,0.000239,30]
[322874199,1713452674090,151.0,0.00023422,120]
[322874200,1713452709241,103.93146658,0.00015872,2]
[322874201,1713452709262,96.06853342,0.00015872,2]
[322874202,1713452745842,559.52,0.00014188,2]
[322874203,1713452763634,1290.58,0.0001611,15]
[322874204,1713452764216,1290.58,0.00018849,15]
[322874207,1713452855738,-256.67025868,0.00015999,2]
[322874208,1713452855760,-1461.59342783,0.00016,2]
[322874209,1713452855783,-250.0,0.00016119,2]
[322874210,1713452855805,-1996.95,0.00016144,2]
[322874211,1713452855828,-150.0,0.00016154,2]
[322874212,1713452855851,-150.0,0.00016154,2]
[322874213,1713452855876,-150.0,0.00016154,2]
[322874214,1713452855899,-23900.0,0.00016155,2]
[322874215,1713452855921,-178.62,0.00016162,2]
[322874216,1713452855944,-196.82,0.00016179,2]
[322874217,1713452855966,-186.78,0.0001619,2]
[322874218,1713452855989,-185.97,0.00016197,2]
[322874219,1713452856012,-1000.0,0.0001621,2]
[322874220,1713452856034,-499.99,0.00016275,2]
[322874221,1713452856057,-424.86,0.00016281,2]
[322874222,1713452856079,-299.99,0.00016318,4]
[322874223,1713452856101,-559.52,0.00016452,2]
[322874224,1713452856121,-9275.72,0.00016712,2]
[322874225,1713452856146,-381.26,0.00016766,2]
[322874226,1713452856170,-381.26,0.00016771,2]
[322874227,1713452856194,-252.92,0.00016771,2]
[322874228,1713452856218,-381.26,0.00016776,2]
[322874229,1713452856242,-381.26,0.00016781,2]
[322874230,1713452856266,-381.26,0.00016787,2]
[322874231,1713452856288,-381.26,0.00016792,2]
[322874232,1713452856311,-381.26,0.00016797,2]
[322874233,1713452856333,-381.26,0.00016803,2]
[322874234,1713452856717,-381.26,0.00016808,2]
[322874235,1713452856741,-381.26,0.00016813,2]
[322874236,1713452856763,-381.26,0.00016818,2]
[322874237,1713452856785,-381.26,0.00016824,2]
[322874238,1713452856807,-381.26,0.00016829,2]
[322874239,1713452856829,-381.26,0.00016834,2]
[322874240,1713452856852,-381.26,0.0001684,2]
[322874241,1713452856874,-381.26,0.00016845,2]
[322874242,1713452856897,-381.26,0.0001685,2]
[322874243,1713452856922,-381.26,0.00016855,2]
[322874244,1713452856943,-381.26,0.00016861,2]
[322874245,1713452856964,-381.26,0.00016866,2]
[322874246,1713452856987,-362.11,0.00016965,2]
[322874247,1713452857007,-300.0,0.00016999,2]
[322874248,1713452857028,-300.0,0.00016999,2]
[322874249,1713452857050,-300.0,0.00016999,2]
[322874250,1713452857072,-300.0,0.00016999,2]
[322874251,1713452857093,-300.0,0.00016999,2]
[322874252,1713452857115,-300.0,0.00016999,2]
[322874253,1713452857141,-244.71264631,0.00016999,2]
[322874254,1713452857163,-4000.0,0.00017,2]
[322874255,1713452857187,-1250.0,0.00017,2]
[322874256,1713452857207,-3341.57366718,0.00017089,2]
[322874275,1713453031723,-185.97,0.0001687,2]
[322874278,1713453031735,-1293.26801217,0.0001691,2]
[322874280,1713453031746,-256.67025868,0.00016911,2]
[322874283,1713453031755,-365.09083305,0.00016912,2]
[322874284,1713453031767,-1695.4490754,0.00016912,2]
[322874285,1713453031779,-1658.57010372,0.00016912,2]
[322874287,1713453031790,-393.73998783,0.00016912,2]
[322874288,1713453031799,-275.563401,0.00017001,2]
[322874289,1713453031809,-290.39733282,0.00017089,2]
[322874290,1713453031818,-236.246772,0.0001726,2]
[322874291,1713453031827,-150.0,0.00017279,2]
[322874292,1713453031837,-150.0,0.00017279,2]
[322874293,1713453031846,-211.46055634,0.0001728,2]
[322874294,1713453031882,-288.53944366,0.0001728,2]
[322874295,1713453031891,-500.0,0.0001728,2]
[322874296,1713453031901,-600.0,0.0001728,2]
[322874297,1713453031911,-1500.0,0.0001728,2]
[322874298,1713453031921,-400.0,0.000173,6]
[322874299,1713453031930,-800.0,0.000174,6]
[322874300,1713453031939,-1200.0,0.000175,6]
[322874301,1713453031948,-1109.82390944,0.000176,6]
[322874302,1713453031960,-490.17609056,0.000176,6]
[322874303,1713453031969,-6965.92402839,0.00017631,2]
[322874304,1713453031978,-2000.0,0.000177,6]
[322874305,1713453031994,-499.99,0.000177,2]
[322874306,1713453032003,-754.0,0.000177,2]
[322874307,1713453032013,-400.0,0.000178,6]
[322874308,1713453032023,-600.0,0.00017828,2]
[322874309,1713453032032,-1500.0,0.00017828,2]
[322874310,1713453032041,-5887.0,0.00017859,2]
[322874311,1713453032051,-2703.0,0.00017859,2]
[322874312,1713453032061,-5725.0,0.00017859,2]
[322874313,1713453032070,-37661.0,0.00017859,2]
[322874314,1713453032080,-1054.0,0.00017859,2]
[322874315,1713453032089,-473.48,0.0001787,3]
[322874316,1713453032098,-236.74,0.0001787,3]
[322874317,1713453032107,-2229.8601,0.00017874,2]
[322874318,1713453032115,-159.35,0.00017874,2]
[322874319,1713453032124,-25124.7859193,0.0001789,2]
[322874320,1713453032133,-1192.3106654,0.00017899,2]
[322874321,1713453032142,-1192.3106654,0.000179,2]
[322874322,1713453032151,-4793.3633,0.000179,2]
[322874323,1713453032160,-8012.1655,0.000179,2]
[322874324,1713453032169,-6405.53168519,0.000179,2]
[322874325,1713453032179,-7500.0,0.000179,2]
[322874326,1713453032188,-207.33406528,0.000179,2]
[322874327,1713453032196,-400.0,0.000179,6]
[322874329,1713453032206,-10877.82191167,0.000179,2]
[322874361,1713453033366,-1000.0,0.000179,2]
[322874362,1713453033403,-529.62462497,0.000179,2]
[322874363,1713453033414,-1192.3106654,0.000179,2]
[322874364,1713453033425,-816.22092166,0.000179,2]
[322874365,1713453033437,-1567.96623408,0.000179,2]
[322874366,1713453033449,-187.52025476,0.000179,2]
[322874367,1713453033459,-160.92,0.000179,2]
[322874368,1713453033469,-766.07143124,0.00017949,2]
[322874369,1713453033478,-710.22,0.00017963,3]
[322874370,1713453033491,-443.44850961,0.00017972,2]
[322874371,1713453033501,-155.0,0.00017972,2]
[322874372,1713453033511,-157.2626637,0.00017972,2]
[322874373,1713453033520,-676.47788724,0.00017973,2]
[322874374,1713453033529,-461.0,0.00017974,2]
[322874375,1713453033538,-1123.80458358,0.00017974,2]
[322874376,1713453033550,-276.15941642,0.00017974,2]
[322874377,1713453033560,-969.229,0.00017974,2]
[322874378,1713453033570,-2292.0,0.00017974,2]
[322874379,1713453033579,-1228.0,0.00017974,2]
[322874380,1713453033589,-1254.0,0.00017974,2]
[322874381,1713453033598,-541.0,0.00017974,2]
[322874382,1713453033607,-364.808,0.00017974,2]
[322874383,1713453033616,-357.77791184,0.00017974,2]
[322874409,1713453039172,-80.39808816,0.00017974,2]
[322874410,1713453039181,-609.0,0.00017974,2]
[322874411,1713453039190,-20.35189145,0.00017974,2]
[322874412,1713453039201,-436.63471156,0.00017974,2]
[322874413,1713453039328,-901.19631038,0.00017974,2]
[322874414,1713453039361,-590.81708661,0.00017974,2]
[322874415,1713453039370,-303.40491339,0.00017974,2]
[322874416,1713453039388,-503.59508661,0.00017974,2]
[322874417,1713453039397,-1437.35000903,0.00017974,2]
[322874418,1713453039407,-1014.93699097,0.00017974,2]
[322874419,1713453039416,-444.724,0.00017974,2]
[322874420,1713453039425,-297.7,0.00017974,2]
[322874421,1713453039434,-3079.0,0.00017974,2]
[322874422,1713453039444,-1473.0,0.00017974,2]
[322874423,1713453039456,-203.906,0.00017974,2]
[322874424,1713453039465,-1455.90494372,0.00017974,2]
[322874425,1713453039476,-183.09505628,0.00017974,2]
[322874426,1713453039489,-227.0,0.00017974,2]
[322874427,1713453039498,-242.856,0.00017974,2]
[322874428,1713453039507,-399.52,0.00017974,2]
[322874429,1713453039517,-449.655,0.00017974,2]
[322874430,1713453039527,-1140.0,0.00017974,2]
[322874431,1713453039540,-150.31,0.00017989,2]
[322874432,1713453039549,-150.31,0.00017989,2]
[322874434,1713453039559,-150.31,0.00017989,2]
[322874435,1713453039569,-38.81866372,0.00017989,2]
[322874437,1713453039581,-111.49133628,0.00017989,2]
[322874438,1713453039590,-150.31,0.00017989,2]
[322874439,1713453039600,-123.57633025,0.0001799,2]
[322874441,1713453039644,-26.73366975,0.0001799,2]
[322874442,1713453039653,-150.31,0.0001799,2]
[322874443,1713453039663,-150.31,0.0001799,2]
[322874444,1713453039672,-150.31,0.0001799,2]
[322874445,1713453039681,-31.50422387,0.0001799,2]
[322874447,1713453039693,-118.80577613,0.0001799,2]
[322874448,1713453039701,-150.31,0.0001799,2]
[322874449,1713453039711,-150.31,0.0001799,2]
[322874450,1713453039720,-150.31,0.0001799,2]
[322874451,1713453039729,-114.50612444,0.0001799,2]
[322874452,1713453040695,-35.80387556,0.0001799,2]
[322874453,1713453040706,-150.31,0.0001799,2]
[322874454,1713453040716,-150.31,0.0001799,2]
[322874455,1713453040725,-111.36062693,0.0001799,2]
[322874456,1713453040740,-38.94937307,0.0001799,2]
[322874457,1713453040750,-150.31,0.0001799,2]
[322874458,1713453040758,-150.31,0.0001799,2]
[322874459,1713453040769,-150.31,0.0001799,2]
[322874460,1713453040780,-150.31,0.0001799,2]
[322874461,1713453040790,-150.31,0.0001799,2]
[322874462,1713453040800,-150.31,0.0001799,2]
[322874463,1713453040811,-150.31,0.0001799,2]
[322874464,1713453040820,-150.31,0.0001799,2]
[322874465,1713453040830,-150.31,0.0001799,2]
[322874466,1713453040840,-150.31,0.0001799,2]
[322874467,1713453040851,-150.31,0.0001799,2]
[322874468,1713453040861,-150.31,0.0001799,2]
[322874469,1713453040871,-150.31,0.0001799,2]
[322874470,1713453040880,-150.31,0.0001799,2]
[322874471,1713453040890,-150.31,0.0001799,2]
[322874472,1713453040900,-150.31,0.0001799,2]
[322874473,1713453040910,-169.61877142,0.00017997,2]
[322874474,1713453040919,-155.0,0.00017997,2]
[322874475,1713453040929,-1042.21,0.00017997,2]
[322874476,1713453040939,-263.49210019,0.00017997,2]
[322874477,1713453040948,-197.86031143,0.00017998,2]
[322874478,1713453040958,-6188.83874582,0.00017998,2]
[322874479,1713453040968,-1004.93,0.00017998,2]
[322874480,1713453040978,-1004.93,0.00017998,2]
[322874481,1713453040989,-1004.93,0.00017998,2]
[322874482,1713453040999,-1004.93,0.00017998,2]
[322874483,1713453041008,-57163.57221939,0.00017999,2]
[322874484,1713453041020,-80426.08927878,0.00017999,2]
[322874485,1713453041516,-53177.2977925,0.00017999,2]
[322874486,1713453041566,-644.31697829,0.00017999,2]
[322874487,1713453041582,-348.77,0.00017999,2]
[322874488,1713453041593,-2083.64432247,0.00017999,2]
[322874521,1713453044520,-390.5365025,0.00017999,2]
[322874522,1713453044705,-16650.3467,0.00017999,2]
[322874523,1713453044716,-3085.5,0.00017999,2]
[322874524,1713453044728,-271.52028678,0.00017999,2]
[322874572,1713453046893,-256.67025868,0.00017997,2]
[322874573,1713453046902,-7097.54962772,0.00017999,2]
[322874574,1713453046925,-945.51932382,0.00017999,2]
[322874575,1713453046936,-669.896727,0.00017999,2]
[322874576,1713453047051,-1600.075,0.00017999,2]
[322874577,1713453047164,-1227.69,0.00017999,2]
[322874578,1713453047176,-23126.05350436,0.00017999,2]
[322874579,1713453047187,-495.411,0.00017999,2]
[322874580,1713453047199,-647.1303,0.00017999,2]
[322874581,1713453047210,-387.53754655,0.00017999,2]
[322874582,1713453047221,-794.89183922,0.00017999,2]
[322874583,1713453047232,-638.0945318,0.00017999,2]
[322874584,1713453047276,-7496.55257059,0.00017999,2]
[322874585,1713453047287,-2547.2,0.00017999,2]
[322874586,1713453047298,-1018.3,0.00017999,2]
[322874587,1713453056239,756.11,0.000282,120]
[322874588,1713453192067,151.0,0.00024073,120]
[322874589,1713453227560,541.48,0.00013912,2]
[322874590,1713453248629,1836.1,0.00015811,3]
[322874591,1713453268475,170.04,0.00015794,2]
[322874592,1713453339881,1452.38,0.00015746,2]
[322874593,1713453339902,247.09,0.00015746,2]
[322874594,1713453350038,151.5,0.00015824,2]
[322874595,1713453350273,151.5,0.00015962,2]
[322874596,1713453360567,712.03789368,0.00015823,2]
[322874597,1713453370740,200.0,0.00015707,2]
[322874598,1713453388188,862.34198,0.00015997,2]
[322874599,1713453420192,1545.44,0.00015723,2]
[322874600,1713453457949,1129.25,0.0001611,15]
[322874601,1713453458611,1129.25,0.00018849,15]
[322874602,1713453464368,130.09012632,0.00015723,2]
[322874603,1713453464393,4000.0,0.00015723,2]
[322874604,1713453464415,4000.0,0.00015723,2]
[322874605,1713453464437,4000.0,0.00015723,2]
[322874606,1713453464459,4000.0,0.00015723,2]
[322874607,1713453464481,2874.70987368,0.00015723,2]
[322874608,1713453469483,526.51897458,0.00015722,2]
[322874609,1713453475099,598.77115174,0.00015723,2]
[322874610,1713453475120,854.23884826,0.00015723,2]
[322874611,1713453479609,378.78784574,0.00015722,2]
[322874612,1713453481182,236.59678776,0.00015722,2]
[322874613,1713453542620,200.0,0.00015658,2]
[322874614,1713453546432,220.06,0.00015673,2]
[322874615,1713453591901,250.0,0.00015675,2]
[322874616,1713453603986,160.72349289,0.00015948,2]
[322874617,1713453612216,151.0,0.00023885,120]
[322874618,1713453620705,402.16447192,0.00024333,30]
[322874619,1713453620891,229.42,0.00015657,2]
[322874620,1713453627437,247.4,0.00015643,2]
[322874621,1713453739148,1220.67551642,0.00016,2]
[322874622,1713453841990,2.09750893,0.00015755,2]
[322874623,1713453842012,149.40249107,0.00015755,2]
[322874624,1713453842145,151.5,0.0001596,2]
[322874625,1713453851753,840.0,0.00015636,2]
[322874626,1713453853355,1132.98,0.00015636,2]
[322874627,1713453943728,988.09,0.0001611,15]
[322874628,1713453943913,988.09,0.00018849,15]
[322874629,1713453946461,514.4,0.00013793,2]
[322874630,1713453967799,155.0,0.00016,2]
[322874631,1713453967981,210.470239,0.00016,2]
[322874632,1713453968549,194.27273769,0.00016,2]
[322874633,1713453970076,192.62411189,0.00016,2]
[322874634,1713453971552,155.0,0.00016,2]
[322874635,1713453973171,155.0,0.00016,2]
[322874636,1713453976617,149.35042035,0.00015999,2]
[322874637,1713453976640,57.29312962,0.00015999,2]
[322874638,1713453980027,202.20556811,0.00016,2]
[322874639,1713453982977,161.40899078,0.00016,2]
[322874640,1713453988251,706.04827787,0.00016,2]
[322874641,1713453994057,256.67025868,0.00016,2]
[322874642,1713453996677,263.62128995,0.00016,2]
[322874643,1713454000064,155.0,0.00016,2]
[322874644,1713454006157,155.0,0.00016,2]
[322874645,1713454007512,155.0,0.00016,2]
[322874646,1713454100170,250.0,0.00015739,2]
[322874647,1713454179903,151.0,0.00024015,120]
[322874673,1713454233886,-210.470239,0.00016037,2]
[322874674,1713454233899,-214.77197304,0.00016038,2]
[322874675,1713454233933,-428.47655994,0.00016038,2]
[322874676,1713454233942,-155.0,0.00016039,2]
[322874677,1713454233952,-405.4757218,0.0001604,2]
[322874678,1713454233961,-161.40899078,0.00016041,2]
[322874679,1713454233971,-206.64354997,0.00016041,2]
[322874680,1713454233980,-194.27273769,0.00016042,2]
[322874681,1713454233989,-150.0,0.00016053,2]
[322874682,1713454233999,-150.0,0.00016053,2]
[322874683,1713454234009,-942.69450132,0.00016054,2]
[322874684,1713454234021,-638.0,0.00016054,2]
[322874685,1713454234088,-276.3518063,0.00016054,2]
[322874686,1713454235746,414.5696,0.00015954,2]
[322874743,1713454239193,-194.27273769,0.00016036,2]
[322874744,1713454239203,-206.64354997,0.00016036,2]
[322874745,1713454239212,-2401.66573699,0.00016054,2]
[322874746,1713454239239,-15520.53517757,0.00016054,2]
[322874747,1713454239250,-715.475,0.00016054,2]
[322874748,1713454239261,-3232.59791078,0.00016054,2]
[322874749,1713454239288,-8024.72102404,0.00016054,2]
[322874750,1713454239348,-639.906,0.00016054,2]
[322874751,1713454239398,-3055.35126391,0.00016054,2]
[322874796,1713454241430,-529.03504464,0.00016054,2]
[322874797,1713454241777,-455.55999999,0.00016054,2]
[322874798,1713454241865,-357.99,0.00016054,2]
[322874799,1713454241876,-2003.495,0.00016054,2]
[322874800,1713454241907,-530.21802037,0.00016054,2]
[322874801,1713454241915,-2667.73197963,0.00016055,2]
[322874802,1713454241927,-1028.98584282,0.00016055,2]
[322874803,1713454241938,-318.2530643,0.00016055,2]
[322874804,1713454242091,-3102.09023425,0.00016055,2]
[322874827,1713454243837,-510.09548647,0.00016055,2]
[322874828,1713454244303,-40039.03560191,0.00016055,2]
[322874829,1713454244315,-514.4,0.00016056,2]
[322874830,1713454244325,-190.36,0.00016063,2]
[322874831,1713454244336,-499.99,0.00016063,2]
[322874832,1713454244346,-24297.7303,0.00016068,2]
[322874833,1713454244357,-240.44381919,0.00016148,2]
[322874834,1713454244368,-151.5,0.00016165,2]
[322874835,1713454244379,-160.72349285,0.00016186,2]
[322874836,1713454244389,-167.43,0.00016209,2]
[322874837,1713454244400,-151.5,0.0001637,2]
[322874838,1713454244415,-160.72349285,0.00016424,2]
[322874839,1713454244426,-2022.74,0.00016438,2]
[322874840,1713454244437,-151.5,0.00016576,2]
[322874841,1713454244448,-160.72349285,0.00016662,2]
[322874842,1713454244459,-184.34,0.00016733,2]
[322874843,1713454244471,-184.34,0.00016738,2]
[322874844,1713454244482,-184.34,0.00016744,2]
[322874845,1713454244492,-184.34,0.00016749,2]
[322874846,1713454244504,-184.34,0.00016754,2]
[322874847,1713454244515,-184.34,0.0001676,2]
[322874848,1713454244526,-184.34,0.00016765,2]
[322874849,1713454244538,-184.34,0.0001677,2]
[322874850,1713454244550,-184.34,0.00016775,2]
[322874851,1713454244560,-184.34,0.00016781,2]
[322874852,1713454244570,-184.34,0.00016786,2]
[322874853,1713454244580,-184.34,0.00016791,2]
[322874854,1713454244590,-184.34,0.00016797,2]
[322874855,1713454244599,-184.34,0.00016802,2]
[322874856,1713454244609,-184.34,0.00016807,2]
[322874857,1713454244618,-184.34,0.00016812,2]
[322874858,1713454244628,-184.34,0.00016818,2]
[322874859,1713454244637,-184.34,0.00016823,2]
[322874860,1713454244647,-184.34,0.00016828,2]
[322874861,1713454244661,-184.34,0.00016834,2]
[322874862,1713454244670,-1065.5352,0.00016899,2]
[322874863,1713454244679,-2184.7638,0.00016899,2]
[322874864,1713454244688,-160.72349285,0.000169,2]
[322874865,1713454244697,-721.96341773,0.000169,2]
[322874866,1713454244706,-7220.8801135,0.00016982,2]
[322874867,1713454244716,-267.47,0.00016987,3]
[322874868,1713454244727,-802.44,0.00016987,3]
[322874869,1713454244739,-853.23438065,0.00016989,2]
[322874870,1713454244750,-816.2412,0.0001699,2]
[322874871,1713454244761,-540.60032503,0.00016995,2]
[322874872,1713454244772,-169.61877142,0.00016995,2]